bitfinex/quotes_SOLUSD_20240829
["timestamp","ask_amount","ask_price","bid_price","bid_amount"]
[1724960102703,94.11676402,140.54,140.46,17.798]
[1724960103116,7.1164,140.52,140.47,7.1185]
[1724960103593,7.1164,140.52,140.48,7.1179]
[1724960103798,94.11676402,140.54,140.46,17.798]
[1724960104009,7.1171,140.51,140.46,24.917]
[1724960105817,51.4602,140.54,140.43,35.6041]
[1724960105818,45.0,140.5,140.43,17.802]
[1724960106037,7.1201,140.45,140.41,0.8401422]
[1724960106322,6.0952,140.48,140.41,0.8401422]
[1724960106644,45.0,140.47,140.41,0.8401422]
[1724960107005,7.12,140.45,140.41,0.8401422]
[1724960107199,45.0,140.47,140.41,0.8401422]
[1724960108304,7.121,140.43,140.41,0.8401422]
[1724960108627,7.1214,140.42,140.41,0.8401422]
[1724960108806,52.1214,140.42,140.41,0.8401422]
[1724960110103,45.0,140.42,140.41,0.8401422]
[1724960110302,52.1214,140.42,140.41,0.8401422]
[1724960112423,45.0,140.42,140.41,0.8401422]
[1724960112614,52.1214,140.42,140.41,0.8401422]
[1724960113205,73.24,140.42,140.41,0.8401422]
[1724960113718,73.24,140.42,140.37,7.1239]
[1724960113918,45.0,140.42,140.38,7.1234]
[1724960114118,7.121,140.43,140.37,24.933]
[1724960114520,7.121,140.43,140.38,7.1231]
[1724960114825,22.2265,140.46,140.41,7.1219]
[1724960115004,52.12,140.45,140.4,24.9285]
[1724960115213,7.1204,140.44,140.4,17.8061]
[1724960115410,7.1215,140.42,140.38,16.5458]
[1724960115926,7.1215,140.42,140.37,7.124]
[1724960116304,7.122,140.41,140.36,24.9348]
[1724960116813,50.0,140.44,140.36,17.8103]
[1724960117020,45.0,140.45,140.36,17.8103]
[1724960117021,7.1219,140.42,140.37,7.124]
[1724960117526,7.121,140.43,140.38,7.1234]
[1724960118521,7.1195,140.46,140.41,7.1219]
[1724960118826,7.1195,140.46,140.36,34.17416364]
[1724960118827,16.61533187,140.48,140.4,17.8053]
[1724960119517,7.118,140.49,140.44,7.1204]
[1724960120222,7.1184,140.48,140.43,24.9233]
[1724960120421,19.04290928,140.5,140.43,24.9233]
[1724960120422,7.1179,140.49,140.44,7.1203]
[1724960120622,7.1174,140.5,140.45,7.1198]
[1724960120932,7.1179,140.49,140.45,7.1197]
[1724960121431,16.4325,140.53,140.46,7.1193]
[1724960121665,16.4325,140.53,140.47,7.1188]
[1724960122938,3.58703491,140.54,140.48,24.9144]
[1724960123122,7.1161,140.53,140.48,24.9144]
[1724960123520,45.0,140.52,140.48,17.796]
[1724960123706,7.1161,140.53,140.48,17.796]
[1724960123903,9.70281999,140.55,140.49,7.1177]
[1724960124126,45.0,140.54,140.49,7.1177]
[1724960125331,7.1156,140.54,140.49,7.1177]
[1724960125837,16.4325,140.56,140.48,17.796]
[1724960126006,7.1149,140.55,140.5,7.1173]
[1724960126426,50.0,140.58,140.51,7.1167]
[1724960126621,7.1148,140.56,140.51,7.1167]
[1724960126833,7.1158,140.54,140.49,7.1175]
[1724960127029,53.46256003,140.58,140.51,7.1164]
[1724960127225,53.46256003,140.58,140.5,24.9098]
[1724960127438,3.46256003,140.58,140.5,17.7925]
[1724960127736,7.1144,140.56,140.51,7.1168]
[1724960127941,49.79479787,140.58,140.52,7.1164]
[1724960128443,7.1138,140.58,140.52,7.1164]
[1724960128815,7.1148,140.56,140.51,15.6794]
[1724960129226,7.1148,140.56,140.51,22.7961]
[1724960130341,7.1148,140.56,140.51,22.2961]
[1724960132242,49.79489787,140.57,140.52,7.1163]
[1724960132862,7.1144,140.56,140.51,22.2962]
[1724960133240,7.115,140.55,140.51,22.2962]
[1724960133952,42.68099787,140.57,140.51,22.2962]
[1724960133953,7.1145,140.56,140.51,22.2962]
[1724960134161,7.115,140.55,140.51,15.1794]
[1724960134356,7.115,140.55,140.51,22.2961]
[1724960134537,7.1158,140.54,140.51,15.1794]
[1724960134962,7.1149,140.55,140.51,15.1794]
[1724960136049,42.68099787,140.57,140.51,15.1794]
[1724960136050,42.68099787,140.57,140.53,17.7894]
[1724960136234,7.1138,140.58,140.53,24.9052]
[1724960136439,45.0,140.57,140.53,24.9052]
[1724960136740,52.1139,140.57,140.53,17.7894]
[1724960139064,52.1144,140.56,140.51,22.2958]
[1724960140766,7.115,140.55,140.51,22.2958]
[1724960140949,7.115,140.55,140.51,15.1794]
[1724960141270,7.1154,140.54,140.51,15.1794]
[1724960143476,7.115,140.55,140.51,22.2963]
[1724960144761,7.1154,140.54,140.51,15.1794]
[1724960145558,7.115,140.55,140.51,15.1794]
[1724960146462,45.0,140.56,140.51,15.1794]
[1724960146762,17.7791,140.62,140.52,19.21353355]
[1724960146940,7.1132,140.59,140.54,7.1153]
[1724960148268,7.1132,140.59,140.55,7.1148]
[1724960149064,7.1135,140.58,140.54,7.1152]
[1724960149854,7.1139,140.57,140.53,7.1157]
[1724960150051,34.12023325,140.6,140.51,21.7995]
[1724960150052,50.0,140.59,140.51,15.1794]
[1724960150273,45.0,140.58,140.51,15.1794]
[1724960150951,45.0,140.59,140.51,15.1794]
[1724960151271,7.115,140.55,140.51,22.2961]
[1724960151767,45.0,140.59,140.52,7.1162]
[1724960151973,45.0,140.59,140.53,7.1158]
[1724960152167,41.23403325,140.58,140.53,7.1158]
[1724960153176,3.46777195,140.62,140.54,7.1153]
[1724960153367,20.0,140.62,140.54,7.1153]
[1724960153870,7.1137,140.58,140.53,7.1158]
[1724960154677,7.1124,140.6,140.55,7.1147]
[1724960155784,7.1124,140.6,140.55,24.9016]
[1724960157260,7.1132,140.59,140.55,17.7869]
[1724960157462,67.7801,140.61,140.52,24.9064]
[1724960157650,7.1144,140.56,140.52,24.9064]
[1724960158456,7.1155,140.54,140.51,15.1794]
[1724960159210,7.115,140.55,140.51,15.1794]
[1724960159357,17.7825,140.59,140.51,32.9712]
[1724960159553,45.0,140.58,140.51,32.9712]
[1724960159874,45.0,140.58,140.52,7.1163]
[1724960159875,7.1142,140.57,140.52,7.1163]
[1724960160262,7.1144,140.56,140.51,40.088]
[1724960160956,79.12023325,140.58,140.54,7.1149]
[1724960161155,45.0,140.58,140.54,7.1149]
[1724960161475,45.0,140.59,140.53,24.905]
[1724960161984,7.1142,140.57,140.53,17.7893]
[1724960163290,7.1122,140.61,140.56,7.1143]
[1724960163669,7.1123,140.6,140.56,7.1143]
[1724960164981,7.112,140.61,140.57,7.1138]
[1724960165165,258.0,140.66,140.57,33.6928]
[1724960165485,7.1104,140.64,140.59,7.1125]
[1724960165689,7.1104,140.64,140.6,7.1123]
[1724960166718,3.49471021,140.67,140.63,7.1105]
[1724960166893,3.49471021,140.67,140.62,17.7775]
[1724960166894,7.1088,140.67,140.62,24.8887]
[1724960167561,3.55704657,140.71,140.64,16.1566]
[1724960167759,34.12023325,140.71,140.64,16.1566]
[1724960168303,41.22703325,140.71,140.66,7.1092]
[1724960168596,7.1073,140.7,140.65,7.1097]
[1724960168794,7.1079,140.69,140.64,41.0419]
[1724960169671,84.2685,140.74,140.64,41.0419]
[1724960169672,7.1083,140.68,140.64,33.9317]
[1724960170082,7.1078,140.69,140.64,41.0419]
[1724960170389,87.71883517,140.74,140.64,41.0419]
[1724960170390,7.1085,140.68,140.64,33.9317]
[1724960170897,7.11,140.65,140.61,17.7791]
[1724960171104,85.5322,140.72,140.61,17.7791]
[1724960171265,65.0,140.71,140.61,17.7791]
[1724960172094,7.1094,140.66,140.61,24.8905]
[1724960172280,7.1094,140.66,140.61,24.8908]
[1724960172483,7.1102,140.65,140.61,17.7791]
[1724960173087,7.1094,140.66,140.61,24.8909]
[1724960174096,7.1094,140.66,140.62,7.1113]
[1724960174800,7.1089,140.67,140.62,7.1113]
[1724960176381,7.1094,140.66,140.62,7.1113]
[1724960176800,7.1094,140.66,140.61,24.8909]
[1724960179000,7.1094,140.66,140.62,7.1112]
[1724960180395,7.1099,140.65,140.61,17.7791]
[1724960181717,7.1104,140.64,140.6,16.1566]
[1724960181884,74.2868,140.68,140.6,16.1566]
[1724960182085,7.1104,140.64,140.6,16.1566]
[1724960183597,74.2868,140.68,140.6,16.1566]
[1724960183793,34.12023325,140.64,140.6,16.1566]
[1724960184484,67.7737,140.66,140.6,16.1566]
[1724960184701,67.7737,140.66,140.56,15.7001]
[1724960184702,45.0,140.65,140.56,15.7001]
[1724960185279,17.7765,140.64,140.56,15.7001]
[1724960185496,45.0,140.63,140.56,15.7001]
[1724960185904,7.1125,140.6,140.56,15.7001]
[1724960186405,45.0,140.63,140.57,17.784]
[1724960186608,7.1108,140.63,140.58,8.53573398]
[1724960187998,7.1104,140.64,140.59,17.7818]
[1724960188191,7.1095,140.66,140.62,7.1112]
[1724960188390,7.1095,140.66,140.6,1.42229063]
[1724960188391,7.1095,140.66,140.61,40.591]
[1724960189093,7.1095,140.66,140.62,7.1113]
[1724960189304,7.1088,140.67,140.61,39.8084]
[1724960189677,21.27573022,140.7,140.61,39.8084]
[1724960189881,7.1084,140.68,140.63,7.1108]
[1724960190912,7.1089,140.67,140.63,7.1108]
[1724960191294,7.1089,140.67,140.62,7.1112]
[1724960191703,7.1099,140.65,140.61,46.9202]
[1724960192008,21.27573022,140.7,140.62,7.1112]
[1724960192206,34.12023325,140.68,140.62,7.1112]
[1724960192386,45.0,140.67,140.62,7.1112]
[1724960193187,45.0,140.67,140.61,39.8084]
[1724960193382,45.0,140.67,140.61,29.1409]
[1724960193821,7.1094,140.66,140.61,29.1409]
[1724960193989,45.0,140.67,140.62,7.1111]
[1724960194384,52.1093,140.67,140.62,7.1111]
[1724960194784,52.1093,140.67,140.63,7.1107]
[1724960195107,52.1093,140.67,140.62,7.1112]
[1724960196207,7.1093,140.66,140.62,7.1112]
[1724960198115,7.1089,140.67,140.62,7.1112]
[1724960198793,34.12023325,140.68,140.62,17.778]
[1724960198992,7.1081,140.69,140.64,7.1099]
[1724960199592,6.5156,140.72,140.65,17.7738]
[1724960199791,7.1078,140.69,140.65,17.7738]
[1724960201520,3.48466324,140.72,140.63,7.1108]
[1724960201818,20.0,140.72,140.63,7.1108]
[1724960201987,45.0,140.71,140.63,7.1108]
[1724960202186,7.1098,140.65,140.61,22.0292]
[1724960202627,7.1098,140.65,140.61,29.1409]
[1724960203514,17.7704,140.69,140.61,29.1409]
[1724960203515,7.1094,140.66,140.61,29.1409]
[1724960204247,17.7704,140.69,140.61,15.7001]
[1724960204408,7.1107,140.64,140.61,15.7001]
[1724960204592,7.1109,140.63,140.61,15.7001]
[1724960204792,34.12023325,140.62,140.61,15.7001]
[1724960206418,7.1104,140.64,140.61,15.7001]
[1724960209498,34.12023325,140.63,140.57,21.9503]
[1724960210025,7.1122,140.61,140.57,23.0025]
[1724960210413,7.1114,140.62,140.58,7.1133]
[1724960210723,34.12023325,140.61,140.58,7.1133]
[1724960211307,34.12023325,140.61,140.57,23.0025]
[1724960211826,41.23123325,140.63,140.57,15.8887]
[1724960212001,34.12023325,140.63,140.6,7.1122]
[1724960212621,7.1099,140.65,140.61,7.1117]
[1724960212812,34.12023325,140.67,140.59,17.7819]
[1724960214010,7.1093,140.66,140.61,7.1117]
[1724960215725,41.22943325,140.67,140.62,7.1112]
[1724960215910,7.1094,140.66,140.62,7.1112]
[1724960216432,7.1094,140.66,140.61,24.8908]
[1724960218698,41.22913325,140.67,140.61,17.7791]
[1724960219024,34.12023325,140.67,140.63,7.1106]
[1724960219255,7.1074,140.7,140.63,16.514]
[1724960220424,7.1074,140.7,140.66,7.1092]
[1724960221831,7.1069,140.71,140.67,7.1088]
[1724960222323,7.1064,140.72,140.67,7.1088]
[1724960222527,7.1064,140.72,140.68,8.52984436]
[1724960222715,7.1064,140.72,140.68,7.1083]
[1724960223619,7.1068,140.72,140.67,7.1086]
[1724960223832,7.1068,140.72,140.68,7.1082]
[1724960224329,7.1068,140.72,140.68,7.5142232]
[1724960224734,7.1068,140.72,140.68,8.52970364]
[1724960226513,3.58784229,140.76,140.69,8.52855647]
[1724960226514,7.1059,140.73,140.69,8.52855647]
[1724960226835,7.1059,140.73,140.69,23.82965647]
[1724960228712,7.1053,140.74,140.7,7.1072]
[1724960229243,7.1044,140.76,140.71,1.42065451]
[1724960229945,7.9440422,140.77,140.72,7.1059]
[1724960230124,7.9440422,140.77,140.73,7.1055]
[1724960230325,0.8401422,140.77,140.73,7.1055]
[1724960231121,0.8401422,140.77,140.74,7.84682345]
[1724960231444,0.8401422,140.77,140.75,17.7612]
[1724960232939,0.8401422,140.77,140.76,7.1042]
[1724960233352,0.8401422,140.77,140.75,24.8659]
[1724960233524,0.8401422,140.77,140.74,16.2011]
[1724960234047,0.8401422,140.77,140.74,33.9637]
[1724960235240,0.8401422,140.77,140.75,7.1045]
[1724960238063,0.8401422,140.77,140.76,7.1042]
[1724960238244,0.8401422,140.77,140.76,8.52468338]
[1724960238636,0.8401422,140.77,140.76,7.1042]
[1724960239123,15.4307,140.85,140.8,7.102]
[1724960239124,41.21993325,140.85,140.8,7.102]
[1724960239323,41.21993325,140.85,140.81,0.50889957]
[1724960239750,41.21993325,140.85,140.81,7.61059957]
[1724960239951,22.4533,140.89,140.84,7.0998]
[1724960240138,7.0986,140.88,140.83,24.852]
[1724960240330,49.47543325,140.89,140.83,24.852]
[1724960240331,34.12023325,140.89,140.83,17.7514]
[1724960240926,41.21803325,140.89,140.84,0.92201257]
[1724960241130,7.0972,140.9,140.85,7.0992]
[1724960241331,7.0972,140.9,140.84,8.02181257]
[1724960241642,34.12023325,140.9,140.84,8.02181257]
[1724960242347,7.0977,140.89,140.83,24.8521]
[1724960242551,7.0972,140.9,140.84,7.1002]
[1724960242857,7.0972,140.9,140.85,7.0996]
[1724960243058,7.9368422,140.91,140.85,7.0996]
[1724960243237,0.8401422,140.91,140.86,7.0988]
[1724960244355,7.9368422,140.91,140.86,7.0988]
[1724960245258,7.9368422,140.91,140.87,16.7273052]
[1724960245259,0.8401422,140.91,140.87,16.7273052]
[1724960245457,0.8401422,140.91,140.9,7.0972]
[1724960247779,0.8401422,140.91,140.9,7.0972]
[1724960250444,0.8401422,140.91,140.89,17.7433]
[1724960250662,0.8401422,140.91,140.89,24.8407]
[1724960251341,0.8401422,140.91,140.9,7.0972]
[1724960252275,0.8401422,140.91,140.89,17.7433]
[1724960252947,0.8401422,140.91,140.9,7.0972]
[1724960254772,0.8401422,140.91,140.9,72.0972]
[1724960255648,6.2595,141.01,140.91,35.4828]
[1724960255649,13.3516,141.01,140.91,35.4828]
[1724960255848,13.3516,141.01,140.92,45.0]
[1724960256746,13.3516,141.01,140.93,16.84153201]
[1724960256978,13.3516,141.01,140.96,7.0937]
[1724960257278,0.8401422,141.05,140.97,45.0]
[1724960257570,0.8401422,141.05,140.99,7.0926]
[1724960257751,7.9299422,141.05,141.0,8.06741296]
[1724960257947,0.8401422,141.05,141.02,7.0908]
[1724960258456,0.8401422,141.05,141.01,17.7284]
[1724960258775,0.8401422,141.05,141.01,24.8199]
[1724960259285,0.8401422,141.05,141.01,17.7284]
[1724960260079,0.8401422,141.05,141.03,17.7256]
[1724960260264,0.8401422,141.05,141.04,7.0901]
[1724960260464,0.8401422,141.05,141.03,24.8161]
[1724960260673,0.8401422,141.05,141.03,17.7256]
[1724960261163,0.8401422,141.05,141.0,15.557]
[1724960261363,0.8401422,141.05,141.01,7.0912]
[1724960261565,0.8401422,141.05,140.99,17.7312]
[1724960261785,7.9298422,141.05,141.0,7.0921]
[1724960262965,7.0904,141.04,140.99,24.8237]
[1724960263486,0.8401422,141.19,141.0,26.8441]
[1724960263785,10.04549186,141.18,141.07,17.7214]
[1724960263962,6.4929,141.18,141.09,17.7181]
[1724960264345,6.4929,141.18,141.14,7.0849]
[1724960264458,6.4929,141.18,141.15,7.0846]
[1724960264658,6.4929,141.18,141.15,17.7115]
[1724960265286,0.8401422,141.19,141.17,7.0835]
[1724960265471,0.3401422,141.19,141.17,7.0835]
[1724960266088,0.3401422,141.19,141.18,7.0831]
[1724960266398,0.3401422,141.19,141.15,24.7959]
[1724960266572,0.3401422,141.19,141.16,7.0838]
[1724960267075,0.3401422,141.19,141.15,17.7115]
[1724960267286,0.3401422,141.19,141.17,7.0835]
[1724960267689,0.3401422,141.19,141.16,7.0841]
[1724960268200,0.3401422,141.19,141.15,24.7961]
[1724960268408,0.3401422,141.19,141.16,7.0838]
[1724960269313,0.3401422,141.19,141.17,7.0833]
[1724960269486,0.3401422,141.19,141.16,7.084]
[1724960270095,22.3738422,141.23,141.16,7.084]
[1724960270297,52.0811,141.22,141.17,17.708]
[1724960270513,52.0811,141.22,141.18,7.0831]
[1724960270681,52.0811,141.22,141.17,24.7916]
[1724960270885,22.3738422,141.23,141.18,7.0826]
[1724960271613,22.3738422,141.23,141.19,7.0824]
[1724960272885,22.3738422,141.23,141.11,35.4309]
[1724960273095,22.3738422,141.23,141.12,65.0]
[1724960273483,22.3738422,141.23,141.18,7.0827]
[1724960273910,6.4458,141.28,141.17,17.7082]
[1724960274207,6.4458,141.28,141.16,21.6638]
[1724960274208,6.4458,141.28,141.2,17.7053]
[1724960274533,13.5243,141.28,141.23,7.0805]
[1724960275181,7.0786,141.27,141.22,24.783]
[1724960275799,6.4458,141.28,141.21,17.7039]
[1724960276391,7.0798,141.25,141.21,17.7039]
[1724960277290,7.0792,141.26,141.21,24.7855]
[1724960277812,6.4458,141.28,141.21,17.7039]
[1724960278195,7.0806,141.23,141.18,24.7906]
[1724960279530,7.0817,141.21,141.16,7.0837]
[1724960279696,17.701,141.24,141.15,7.0845]
[1724960279894,7.0822,141.2,141.16,7.084]
[1724960280215,7.0817,141.21,141.16,7.084]
[1724960280418,45.0,141.23,141.14,17.7117]
[1724960280715,7.0822,141.2,141.15,7.0842]
[1724960281304,7.0822,141.2,141.16,1.41665384]
[1724960281611,6.6094,141.21,141.16,1.41665384]
[1724960281815,6.6094,141.21,141.11,35.4309]
[1724960281992,6.6094,141.21,141.17,7.0835]
[1724960282192,13.6914,141.21,141.15,17.7106]
[1724960282393,7.082,141.21,141.16,8.50027058]
[1724960282599,7.082,141.21,141.16,7.0837]
[1724960283011,7.0823,141.2,141.15,24.7951]
[1724960284536,7.0823,141.2,141.16,0.40478018]
[1724960284710,7.0823,141.2,141.15,24.7951]
[1724960285740,7.0822,141.2,141.15,24.7951]
[1724960286652,45.0,141.23,141.15,24.7951]
[1724960286851,45.0,141.24,141.15,24.7951]
[1724960287533,45.0,141.24,141.15,17.7106]
[1724960287739,7.0819,141.21,141.16,7.0841]
[1724960287918,52.0821,141.2,141.16,7.0841]
[1724960288113,7.0821,141.2,141.15,24.7951]
[1724960288528,45.0,141.24,141.15,24.7951]
[1724960288529,7.0816,141.21,141.16,7.0841]
[1724960288752,52.0821,141.2,141.16,7.0841]
[1724960289038,15.5899,141.26,141.23,7.0805]
[1724960289385,7.0782,141.28,141.23,7.0805]
[1724960290717,15.0027,141.3,141.24,1.41595324]
[1724960290918,1.23374049,141.32,141.29,7.0772]
[1724960291155,0.8401422,141.33,141.29,7.0772]
[1724960291715,0.8401422,141.33,141.27,17.6954]
[1724960291937,0.8401422,141.33,141.27,24.7738]
[1724960292119,7.9157422,141.33,141.27,24.7738]
[1724960292319,7.0762,141.32,141.27,17.6954]
[1724960292521,7.0767,141.31,141.27,17.6954]
[1724960292726,0.8401422,141.33,141.25,7.0793]
[1724960292938,7.0766,141.31,141.26,7.0789]
[1724960293135,7.0766,141.31,141.25,7.0796]
[1724960293340,0.8401422,141.33,141.25,7.0796]
[1724960293657,7.0776,141.29,141.23,17.7005]
[1724960293942,6.4984,141.29,141.19,17.7058]
[1724960294131,45.0,141.28,141.19,17.7058]
[1724960294339,45.0,141.28,141.22,7.0811]
[1724960294549,7.079,141.27,141.21,7.0816]
[1724960294759,7.079,141.27,141.22,7.0811]
[1724960295136,16.6617,141.32,141.25,7.0795]
[1724960295455,7.0773,141.3,141.25,7.0795]
[1724960295851,23.7381,141.32,141.26,7.079]
[1724960296034,7.3385422,141.33,141.28,24.773]
[1724960296229,14.4143422,141.33,141.28,24.773]
[1724960296641,7.3385422,141.33,141.26,7.079]
[1724960296852,7.0774,141.3,141.25,24.7785]
[1724960297859,7.3385422,141.33,141.25,17.699]
[1724960298065,7.0766,141.31,141.26,7.0791]
[1724960298360,7.0772,141.3,141.25,17.699]
[1724960298660,7.3385422,141.33,141.25,17.699]
[1724960299163,7.0766,141.31,141.26,7.0787]
[1724960300050,7.0767,141.31,141.25,17.699]
[1724960300352,0.8401422,141.33,141.26,7.0791]
[1724960300657,0.8401422,141.33,141.24,15.2102]
[1724960300658,0.8401422,141.33,141.29,7.0774]
[1724960300857,7.9158422,141.33,141.28,24.773]
[1724960301067,0.8401422,141.33,141.25,17.6988]
[1724960301237,7.0767,141.31,141.26,7.0786]
[1724960301855,0.8401422,141.33,141.28,7.0779]
[1724960302457,0.8401422,141.33,141.29,7.0773]
[1724960302772,0.8401422,141.33,141.28,17.6948]
[1724960302773,7.9157422,141.33,141.28,24.7729]
[1724960303086,7.0762,141.32,141.28,24.7729]
[1724960303266,7.9157422,141.33,141.28,24.7729]
[1724960304473,0.8401422,141.33,141.29,7.0774]
[1724960304663,7.9158422,141.33,141.28,17.6948]
[1724960304864,7.0766,141.31,141.27,7.0785]
[1724960305167,0.8401422,141.33,141.28,7.0779]
[1724960305363,0.8401422,141.33,141.27,17.6958]
[1724960305590,0.8401422,141.33,141.31,7.0764]
[1724960306657,0.8401422,141.33,141.29,24.7704]
[1724960307387,7.9161422,141.33,141.29,17.6929]
[1724960307683,7.0762,141.32,141.27,7.0785]
[1724960307892,7.0769,141.31,141.26,24.7764]
[1724960308564,7.0772,141.3,141.25,7.0796]
[1724960309513,7.0778,141.29,141.25,7.0796]
[1724960310413,13.4835,141.3,141.25,7.0796]
[1724960310584,7.0772,141.3,141.25,7.0796]
[1724960310986,7.0766,141.31,141.25,17.6985]
[1724960311188,7.0772,141.3,141.26,7.079]
[1724960311697,7.0772,141.3,141.25,17.6985]
[1724960311698,7.0772,141.3,141.25,24.778]
[1724960311903,22.06621964,141.33,141.25,17.6985]
[1724960312214,7.0777,141.29,141.25,17.6985]
[1724960312802,7.0801,141.24,141.16,15.8221]
[1724960313010,7.0801,141.24,141.19,7.0822]
[1724960313510,7.0808,141.23,141.19,17.7059]
[1724960313717,6.4063,141.27,141.19,17.7059]
[1724960314011,45.0,141.26,141.19,17.7059]
[1724960314516,7.0811,141.22,141.16,7.0838]
[1724960315214,15.7528,141.24,141.13,15.0513]
[1724960315414,7.083,141.19,141.13,7.0855]
[1724960316303,7.0822,141.2,141.13,7.0855]
[1724960319826,7.0821,141.2,141.14,7.085]
[1724960320199,7.0817,141.21,141.15,7.0846]
[1724960320904,7.0822,141.2,141.14,24.7972]
[1724960321235,7.0817,141.21,141.15,8.06031486]
[1724960321600,7.0821,141.2,141.15,8.06031486]
[1724960321826,7.0821,141.2,141.14,24.7973]
[1724960322427,7.0821,141.2,141.11,6.5981]
[1724960322428,6.2469,141.22,141.11,17.716]
[1724960322926,7.0828,141.19,141.13,7.0856]
[1724960323625,7.0821,141.2,141.14,7.0851]
[1724960324127,7.0828,141.19,141.13,7.0855]
[1724960325528,72.1522,141.18,141.08,25.12760708]
[1724960325709,65.0,141.17,141.08,7.40750708]
[1724960325916,7.0869,141.11,141.08,7.40750708]
[1724960326240,22.1522,141.18,141.08,7.40750708]
[1724960326528,22.1522,141.18,141.11,7.0866]
[1724960326529,7.084,141.17,141.11,7.0866]
[1724960326724,7.0846,141.15,141.09,17.7183]
[1724960327030,22.1522,141.18,141.11,7.0863]
[1724960327206,22.1522,141.18,141.11,17.7156]
[1724960327405,22.1522,141.18,141.12,7.0861]
[1724960328112,22.1522,141.18,141.13,7.0854]
[1724960328414,6.1461,141.18,141.13,7.0854]
[1724960328931,13.5689,141.24,141.15,17.7106]
[1724960329109,6.4886,141.24,141.18,7.0827]
[1724960329313,6.4886,141.24,141.19,1.41603127]
[1724960330731,6.4886,141.24,141.18,1.41603127]
[1724960331110,6.4886,141.24,141.17,17.7081]
[1724960331713,7.0808,141.23,141.16,7.084]
[1724960332130,7.0808,141.23,141.15,7.0845]
[1724960332837,6.4886,141.24,141.14,24.7976]
[1724960333044,7.0817,141.21,141.14,17.7125]
[1724960334028,7.0823,141.2,141.13,7.0856]
[1724960334405,7.0827,141.19,141.12,7.086]
[1724960334610,7.0821,141.2,141.13,7.0853]
[1724960335125,6.4886,141.24,141.14,17.7126]
[1724960335431,13.5691,141.24,141.14,17.7126]
[1724960336406,13.5691,141.24,141.17,7.0834]
[1724960336628,23.37687832,141.3,141.17,64.46274827]
[1724960336827,22.1427,141.3,141.19,42.24684827]
[1724960337028,22.1427,141.3,141.23,7.0805]
[1724960337210,22.1427,141.3,141.19,42.24684827]
[1724960337211,22.1427,141.3,141.24,8.49558153]
[1724960337635,22.1427,141.3,141.24,1.41568153]
[1724960338024,29.2198,141.3,141.23,7.0805]
[1724960338817,22.1427,141.3,141.24,7.0796]
[1724960340164,29.2198,141.3,141.23,7.0806]
[1724960340342,22.1427,141.3,141.22,17.7021]
[1724960340650,22.1427,141.3,141.22,24.783]
[1724960340853,29.2202,141.3,141.22,24.783]
[1724960341349,7.0776,141.29,141.22,17.7021]
[1724960341650,7.0776,141.29,141.23,1.41586721]
[1724960341851,22.1427,141.3,141.19,17.7062]
[1724960342150,7.0797,141.25,141.19,17.7062]
[1724960342630,7.0797,141.25,141.18,7.083]
[1724960343032,7.0786,141.28,141.2,7.0819]
[1724960343355,45.0,141.29,141.2,7.0819]
[1724960344055,7.0787,141.27,141.2,7.0819]
[1724960344248,45.0,141.29,141.23,7.0806]
[1724960344448,7.0781,141.28,141.21,17.7038]
[1724960344645,7.0786,141.27,141.21,24.7853]
[1724960345364,6.6452,141.28,141.2,35.4088]
[1724960345554,23.0241,141.28,141.21,7.0815]
[1724960345855,30.1023,141.28,141.21,7.0816]
[1724960346067,21.695,141.22,141.15,7.0842]
[1724960346253,21.695,141.22,141.12,35.4296]
[1724960346745,21.695,141.22,141.18,7.0827]